[Event "Ostravsky Konik-A 2019"]
[Site "Ostrava"]
[Date "2019.05.01"]
[Round "5.1"]
[White "Gnojek, Petr"]
[Black "Sernecki, Franciszek"]
[Result "1/2-1/2"]
[ECO "D43"]
[WhiteElo "2016"]
[BlackElo "2259"]
[Annotator "NA"]
[PlyCount "70"]
[EventDate "2019.04.27"]
[EventType "swiss"]
[EventCountry "CZE"]
[SourceTitle "playchess.com"]
[Source "ChessBase"]
[SourceQuality "1"]
[TimeControl "40/5400+30:1800+30"]

1. d4 {[%emt 0:00:00]} Nf6 {[%emt 0:00:00]} 2. c4 {[%emt 0:00:00]} e6 {[%emt 0:00:00]} 3. Nf3 {[%emt 0:00:00]} d5 {[%emt 0:00:00]} 4. Nc3 {[%emt 0:00:00]} c6 {[%emt 0:00:00]} 5. Bg5 {[%emt 0:00:06]} Nbd7 {[%emt 0:00:00]} 6. cxd5 {[%emt 0:00:30]} exd5 {[%emt 0:00:02]} 7. e3 {[%emt 0:00:07]} Qa5 {[%emt 0:02:09]} 8. Nd2 {[%emt 0:06:11]} Bb4 {[%emt 0:01:36]} 9. Qc2 {[%emt 0:00:26]} O-O {[%emt 0:03:57]} 10. Be2 {[%emt 0:01:36]} Ne4 {[%emt 0:18:24]} 11. Ndxe4 {[%emt 0:00:24]} dxe4 {[%emt 0:00:01]} 12. Bh4 {[%emt 0:00:37]} f5 {[%emt 0:30:48]} 13. O-O-O {[%emt 0:14:32]} Nb6 {[%emt 0:06:19]} 14. Qb3+ {[%emt 0:09:26]} Nd5 {[%emt 0:08:27]} 15. Nxd5 {[%emt 0:01:37]} cxd5 {[%emt 0:00:01]} 16. Bg3 {[%emt 0:01:11]} Rf6 {[%emt 0:12:51]} 17. Kb1 {[%emt 0:02:05]} Bd7 {[%emt 0:04:28]} 18. a3 {[%emt 0:00:19]} Bf8 {[%emt 0:00:53]} 19. Qxb7 {[%emt 0:02:02]} Rb6 {[%emt 0:04:00]} 20. Bc7 {[%emt 0:03:55]} Rxb7 21. Bxa5 {[%emt 0:00:04]} Bxa3 {[%emt 0:01:05]} 22. Rd2 {[%emt 0:00:46]} Rab8 {[%emt 0:00:54]} 23. Bc3 {[%emt 0:00:07]} Bb5 {[%emt 0:01:43]} 24. bxa3 {[%emt 0:04:41]} Bxe2+ {[%emt 0:00:04]} 25. Rb2 {[%emt 0:00:14]} Bd3+ {[%emt 0:02:41]} 26. Ka2 {[%emt 0:01:24]} Bc4+ {[%emt 0:00:29]} 27. Ka1 {[%emt 0:00:36]} Rb3 {[%emt 0:00:39]} 28. Rxb3 {[%emt 0:01:36]} Rxb3 {[%emt 0:00:01]} 29. Bb4 {[%emt 0:02:49]} a5 {[%emt 0:00:20]} 30. Bc5 {[%emt 0:00:47]} Rd3 {[%emt 0:01:25]} 31. Rb1 {[%emt 0:00:17]} Bb3 {[%emt 0:00:59]} 32. Kb2 {[%emt 0:00:57]} Ba4 {[%emt 0:01:07]} 33. Ka2 {[%emt 0:00:37]} Kf7 {[%emt 0:00:28]} 34. Bb6 {[%emt 0:13:52]} Rd2+ {[%emt 0:00:04]} 35. Rb2 {[%emt 0:00:06]} Rxb2+ {[%emt 0:00:45]} 1/2-1/2

[Event "Ostravsky Konik-A 2019"]
[Site "Ostrava"]
[Date "2019.05.01"]
[Round "5.2"]
[White "Mica, Marek"]
[Black "Stalmach, Richard"]
[Result "1-0"]
[ECO "A41"]
[WhiteElo "2139"]
[BlackElo "1991"]
[Annotator "NA"]
[PlyCount "107"]
[EventDate "2019.04.27"]
[EventType "swiss"]
[EventCountry "CZE"]
[SourceTitle "playchess.com"]
[Source "ChessBase"]
[SourceQuality "1"]
[TimeControl "40/5400+30:1800+30"]

1. d4 {[%emt 0:00:00]} d6 {[%emt 0:00:00]} 2. Nf3 {[%emt 0:00:00]} g6 {[%emt 0:00:13]} 3. g3 {[%emt 0:00:02]} Bg7 {[%emt 0:00:06]} 4. Bg2 {[%emt 0:00:11]} Nf6 {[%emt 0:03:16]} 5. c4 {[%emt 0:00:35]} O-O {[%emt 0:00:05]} 6. O-O {[%emt 0:00:06]} Nbd7 {[%emt 0:02:27]} 7. Nc3 {[%emt 0:00:53]} c5 {[%emt 0:04:00]} 8. d5 {[%emt 0:00:25]} Nb6 {[%emt 0:05:41]} 9. Qd3 {[%emt 0:01:56]} e6 {[%emt 0:01:16]} 10. e4 {[%emt 0:01:11]} exd5 {[%emt 0:00:15]} 11. cxd5 {[%emt 0:00:44]} Nfd7 {[%emt 0:01:18]} 12. Bf4 {[%emt 0:01:12]} c4 {[%emt 0:21:43]} 13. Qc2 {[%emt 0:00:33]} Nc5 {[%emt 0:09:42]} 14. Nb5 {[%emt 0:04:59]} Nxe4 {[%emt 0:00:46]} 15. Qxe4 {[%emt 0:01:27]} Bf5 {[%emt 0:00:04]} 16. Qe2 {[%emt 0:03:43]} Bd3 {[%emt 0:01:18]} 17. Qd2 {[%emt 0:00:17]} Nxd5 {[%emt 0:05:45]} 18. Bxd6 {[%emt 0:03:03]} Re8 {[%emt 0:00:03]} 19. Rfe1 {[%emt 0:03:00]} Qb6 {[%emt 0:00:03]} 20. a4 {[%emt 0:10:10]} a6 {[%emt 0:01:05]} 21. Rxe8+ {[%emt 0:01:17]} Rxe8 {[%emt 0:00:05]} 22. Qg5 {[%emt 0:01:44]} axb5 {[%emt 0:11:32]} 23. Qxd5 {[%emt 0:00:31]} Be4 {[%emt 0:00:23]} 24. Qxb5 {[%emt 0:01:24]} Qxb5 {[%emt 0:01:24]} 25. axb5 {[%emt 0:00:07]} Bxb2 {[%emt 0:00:03]} 26. Re1 {[%emt 0:00:13]} c3 {[%emt 0:00:52]} 27. Nd4 {[%emt 0:01:01]} Bc6 {[%emt 0:00:11]} 28. Rxe8+ {[%emt 0:00:22]} Bxe8 {[%emt 0:00:03]} 29. Bxb7 {[%emt 0:00:37]} Bxb5 {[%emt 0:07:12]} 30. Nxb5 {[%emt 0:00:22]} c2 {[%emt 0:00:05]} 31. Bf4 {[%emt 0:00:07]} Kf8 {[%emt 0:00:36]} 32. Kg2 {[%emt 0:00:43]} c1=Q {[%emt 0:00:08]} 33. Bxc1 {[%emt 0:00:07]} Bxc1 {[%emt 0:00:02]} 34. Bd5 {[%emt 0:00:38]} Ke7 {[%emt 0:00:04]} 35. f4 {[%emt 0:00:46]} Bb2 {[%emt 0:00:04]} 36. Kf3 {[%emt 0:00:15]} h6 {[%emt 0:03:53]} 37. Bb3 {[%emt 0:02:19]} Bc1 {[%emt 0:01:28]} 38. Nd4 {[%emt 0:01:32]} f6 {[%emt 0:01:02]} 39. f5 {[%emt 0:02:32]} g5 {[%emt 0:00:50]} 40. Kg4 {[%emt 0:00:53]} Be3 {[%emt 0:00:21]} 41. Ne2 {[%emt 0:31:03]} Kf8 {[%emt 0:30:12]} 42. Kh5 {[%emt 0:01:51]} Kg7 {[%emt 0:00:02]} 43. Ba4 {[%emt 0:01:15]} Bc5 {[%emt 0:00:51]} 44. Be8 {[%emt 0:00:43]} Be3 {[%emt 0:00:40]} 45. Nc3 {[%emt 0:05:03]} Bg1 {[%emt 0:00:33]} 46. h3 {[%emt 0:00:30]} Bf2 {[%emt 0:01:13]} 47. Ne4 {[%emt 0:00:07]} Be1 {[%emt 0:00:09]} 48. Kg4 {[%emt 0:02:19]} Bb4 {[%emt 0:01:19]} 49. Kf3 {[%emt 0:00:48]} Ba3 {[%emt 0:00:41]} 50. Bg6 {[%emt 0:02:08]} Bb2 {[%emt 0:06:36]} 51. Nc5 {[%emt 0:05:47]} Kf8 {[%emt 0:00:14]} 52. Kg4 {[%emt 0:00:43]} Ke7 {[%emt 0:12:05]} 53. Kh5 {[%emt 0:00:50]} Be5 {[%emt 0:00:17]} 54. Ne4 {[%emt 0:00:28]} 1-0

[Event "Ostravsky Konik-A 2019"]
[Site "Ostrava"]
[Date "2019.05.01"]
[Round "5.3"]
[White "Mrva, Marek"]
[Black "Vesely, Libor"]
[Result "1/2-1/2"]
[ECO "B34"]
[WhiteElo "2125"]
[BlackElo "2214"]
[Annotator "NA"]
[PlyCount "71"]
[EventDate "2019.04.27"]
[EventType "swiss"]
[EventCountry "CZE"]
[SourceTitle "playchess.com"]
[Source "ChessBase"]
[SourceQuality "1"]
[TimeControl "40/5400+30:1800+30"]

1. e4 {[%emt 0:00:25]} c5 {[%emt 0:00:31]} 2. Nf3 {[%emt 0:00:14]} Nc6 {[%emt 0:00:07]} 3. d4 {[%emt 0:00:12]} cxd4 {[%emt 0:00:03]} 4. Nxd4 {[%emt 0:00:07]} g6 {[%emt 0:00:03]} 5. Nc3 {[%emt 0:00:43]} Bg7 {[%emt 0:00:12]} 6. Be3 {[%emt 0:00:04]} Nf6 {[%emt 0:00:12]} 7. Nxc6 {[%emt 0:03:23]} bxc6 {[%emt 0:00:18]} 8. e5 {[%emt 0:00:03]} Ng8 {[%emt 0:00:08]} 9. f4 {[%emt 0:00:10]} Nh6 {[%emt 0:00:11]} 10. Qd2 {[%emt 0:01:13]} O-O {[%emt 0:00:14]} 11. O-O-O {[%emt 0:03:01]} d5 {[%emt 0:02:24]} 12. h3 {[%emt 0:01:50]} f6 {[%emt 0:00:11]} 13. exf6 {[%emt 0:01:49]} Bxf6 {[%emt 0:02:47]} 14. Bc4 {[%emt 0:07:20]} Nf7 {[%emt 0:03:00]} 15. Bb3 {[%emt 0:00:17]} Qc7 {[%emt 0:10:42]} 16. Rhe1 {[%emt 0:11:16]} e5 {[%emt 0:08:27]} 17. fxe5 {[%emt 0:01:01]} Bxe5 {[%emt 0:00:33]} 18. Kb1 {[%emt 0:01:21]} Ba6 {[%emt 0:09:44]} 19. Na4 {[%emt 0:06:17]} Rad8 {[%emt 0:03:21]} 20. Nc5 {[%emt 0:01:29]} Bc8 {[%emt 0:00:32]} 21. Rf1 {[%emt 0:01:49]} Nd6 {[%emt 0:05:11]} 22. g4 {[%emt 0:02:50]} Rxf1 {[%emt 0:09:08]} 23. Rxf1 {[%emt 0:00:13]} Rf8 {[%emt 0:00:17]} 24. Rxf8+ {[%emt 0:04:15]} Kxf8 {[%emt 0:01:04]} 25. Bh6+ {[%emt 0:07:30]} Ke8 {[%emt 0:03:40]} 26. a3 {[%emt 0:19:20]} Qe7 {[%emt 0:01:55]} 27. Ba4 {[%emt 0:01:07]} Bd7 {[%emt 0:02:09]} 28. Qf2 {[%emt 0:04:50]} Qf6 {[%emt 0:05:44]} 29. Qe2 {[%emt 0:03:45]} Nf7 {[%emt 0:09:19]} 30. Bc1 {[%emt 0:00:28]} Qe7 {[%emt 0:01:04]} 31. Nd3 {[%emt 0:00:56]} Bd4 {[%emt 0:02:03]} 32. Qh2 {[%emt 0:01:31]} Ne5 {[%emt 0:02:50]} 33. Qf4 {[%emt 0:02:15]} c5 {[%emt 0:02:40]} 34. Bxd7+ {[%emt 0:00:29]} Kxd7 {[%emt 0:00:30]} 35. Nxe5+ {[%emt 0:00:26]} Bxe5 {[%emt 0:00:14]} 36. Qf3 {[%emt 0:00:51]} 1/2-1/2

[Event "Ostravsky Konik-A 2019"]
[Site "Ostrava"]
[Date "2019.05.01"]
[Round "5.4"]
[White "Krajina, Ales"]
[Black "Ruzicka, Petr"]
[Result "1/2-1/2"]
[ECO "B08"]
[WhiteElo "2119"]
[BlackElo "2202"]
[Annotator "NA"]
[PlyCount "31"]
[EventDate "2019.04.27"]
[EventType "swiss"]
[EventCountry "CZE"]
[SourceTitle "playchess.com"]
[Source "ChessBase"]
[SourceQuality "1"]
[TimeControl "40/5400+30:1800+30"]

1. e4 {[%emt 0:00:00]} d6 {[%emt 0:00:22]} 2. d4 {[%emt 0:00:18]} Nf6 {[%emt 0:00:15]} 3. Nc3 {[%emt 0:05:26]} g6 {[%emt 0:00:32]} 4. h3 {[%emt 0:03:09]} Bg7 {[%emt 0:00:44]} 5. Nf3 {[%emt 0:00:09]} a6 {[%emt 0:09:00]} 6. Bd3 {[%emt 0:02:56]} O-O {[%emt 0:01:10]} 7. e5 {[%emt 0:04:39]} dxe5 {[%emt 0:05:56]} 8. dxe5 {[%emt 0:02:25]} Nd5 {[%emt 0:01:41]} 9. Nxd5 {[%emt 0:00:15]} Qxd5 {[%emt 0:00:14]} 10. Qe2 {[%emt 0:00:06]} Nc6 {[%emt 0:07:18]} 11. Bc4 {[%emt 0:07:45]} Qc5 {[%emt 0:02:21]} 12. Be3 {[%emt 0:05:19]} Qa5+ {[%emt 0:02:02]} 13. Bd2 {[%emt 0:00:27]} Qc5 {[%emt 0:00:10]} 14. Be3 {[%emt 0:01:17]} Qa5+ {[%emt 0:00:07]} 15. Bd2 {[%emt 0:00:23]} Qc5 {[%emt 0:00:10]} 16. Be3 {[%emt 0:00:10]} 1/2-1/2

[Event "Ostravsky Konik-A 2019"]
[Site "Ostrava"]
[Date "2019.05.01"]
[Round "5.5"]
[White "Nehyba, Martin"]
[Black "Janiszewski, Maciej"]
[Result "1-0"]
[ECO "B01"]
[WhiteElo "2113"]
[BlackElo "2145"]
[Annotator "NA"]
[PlyCount "53"]
[EventDate "2019.04.27"]
[EventType "swiss"]
[EventCountry "CZE"]
[SourceTitle "playchess.com"]
[Source "ChessBase"]
[SourceQuality "1"]
[TimeControl "40/5400+30:1800+30"]

1. e4 {[%emt 0:00:00]} d5 {[%emt 0:00:00]} 2. exd5 {[%emt 0:00:00]} Nf6 {[%emt 0:00:00]} 3. Bb5+ {[%emt 0:00:00]} Nbd7 {[%emt 0:00:05]} 4. c4 {[%emt 0:00:00]} a6 {[%emt 0:00:20]} 5. Ba4 {[%emt 0:00:02]} b5 {[%emt 0:00:06]} 6. cxb5 {[%emt 0:00:33]} Nxd5 {[%emt 0:00:05]} 7. Nc3 {[%emt 0:00:47]} N5b6 {[%emt 0:03:07]} 8. Bb3 {[%emt 0:15:00]} axb5 {[%emt 0:06:06]} 9. Nxb5 {[%emt 0:01:21]} Ba6 {[%emt 0:00:35]} 10. Qf3 {[%emt 0:00:10]} e6 {[%emt 0:13:19]} 11. Qc6 {[%emt 0:00:16]} Bb4 {[%emt 0:07:53]} 12. Nxc7+ {[%emt 0:07:44]} Kf8 {[%emt 0:00:08]} 13. Nxa6 {[%emt 0:00:22]} Ne5 {[%emt 0:05:27]} 14. Qe4 {[%emt 0:06:54]} Nd3+ {[%emt 0:00:58]} 15. Ke2 {[%emt 0:00:10]} Nxc1+ {[%emt 0:01:27]} 16. Rxc1 {[%emt 0:00:04]} Qxd2+ {[%emt 0:00:11]} 17. Kf3 {[%emt 0:00:03]} Be7 {[%emt 0:19:40]} 18. Nh3 {[%emt 0:27:37]} Rxa6 {[%emt 0:01:48]} 19. Rhd1 {[%emt 0:02:26]} Qa5 {[%emt 0:04:42]} 20. Ke2 {[%emt 0:13:44]} Bf6 {[%emt 0:03:18]} 21. Qb7 {[%emt 0:02:11]} Ra8 {[%emt 0:12:50]} 22. Rc7 {[%emt 0:05:23]} Kg8 {[%emt 0:01:04]} 23. Kf1 {[%emt 0:01:31]} Rf8 {[%emt 0:05:49]} 24. Rxf7 {[%emt 0:02:33]} Nd5 {[%emt 0:00:47]} 25. Rxd5 {[%emt 0:01:25]} exd5 {[%emt 0:01:13]} 26. Bxd5 {[%emt 0:00:06]} Qxd5 {[%emt 0:00:20]} 27. Rxf8+ {[%emt 0:00:05]} 1-0

[Event "Ostravsky Konik-A 2019"]
[Site "Ostrava"]
[Date "2019.05.01"]
[Round "5.6"]
[White "Potomak, Vladimir"]
[Black "Orzechowski, Jacek"]
[Result "1/2-1/2"]
[ECO "E62"]
[WhiteElo "2102"]
[BlackElo "2139"]
[Annotator "NA"]
[PlyCount "29"]
[EventDate "2019.04.27"]
[EventType "swiss"]
[EventCountry "CZE"]
[SourceTitle "playchess.com"]
[Source "ChessBase"]
[SourceQuality "1"]
[TimeControl "40/5400+30:1800+30"]

1. c4 {[%emt 0:00:00]} g6 {[%emt 0:00:00]} 2. d4 {[%emt 0:00:00]} Bg7 {[%emt 0:00:00]} 3. Nf3 {[%emt 0:02:04]} Nf6 {[%emt 0:00:36]} 4. g3 {[%emt 0:00:09]} O-O {[%emt 0:00:19]} 5. Bg2 {[%emt 0:00:03]} d6 {[%emt 0:00:09]} 6. O-O {[%emt 0:00:09]} Nc6 {[%emt 0:00:08]} 7. Nc3 {[%emt 0:00:08]} e5 {[%emt 0:00:35]} 8. d5 {[%emt 0:01:55]} Ne7 {[%emt 0:00:11]} 9. c5 {[%emt 0:00:12]} e4 {[%emt 0:03:33]} 10. cxd6 {[%emt 0:12:53]} Qxd6 {[%emt 0:01:51]} 11. Ng5 {[%emt 0:00:19]} Nfxd5 {[%emt 0:00:27]} 12. Nxd5 {[%emt 0:02:31]} Nxd5 {[%emt 0:05:15]} 13. Nxe4 {[%emt 0:00:20]} Qe5 {[%emt 0:00:27]} 14. Ng5 {[%emt 0:11:27]} c6 {[%emt 0:08:05]} 15. Nf3 {[%emt 0:02:22]} 1/2-1/2

[Event "Ostravsky Konik-A 2019"]
[Site "Ostrava"]
[Date "2019.05.01"]
[Round "5.7"]
[White "Matras, Ondrej"]
[Black "Krejci, Jan"]
[Result "0-1"]
[ECO "D37"]
[WhiteElo "2221"]
[BlackElo "2588"]
[Annotator "ChessBase"]
[PlyCount "106"]
[EventDate "2019.04.27"]
[EventType "swiss"]
[EventCountry "CZE"]
[SourceTitle "playchess.com"]
[Source "ChessBase"]
[SourceQuality "1"]
[TimeControl "40/5400+30:1800+30"]

1. d4 {[%emt 0:00:00]} d5 {[%emt 0:00:00]} 2. c4 {[%emt 0:00:00]} e6 {[%emt 0:00:00]} 3. Nc3 {[%emt 0:00:00]} Nf6 {[%emt 0:00:00]} 4. Nf3 {[%emt 0:00:00]} Be7 {[%emt 0:00:12]} 5. Bf4 {[%emt 0:00:00]} c6 {[%emt 0:02:01]} 6. e3 {[%emt 0:00:19]} O-O {[%emt 0:00:13]} 7. Qc2 {[%emt 0:00:43]} Nbd7 {[%emt 0:05:21]} 8. cxd5 {[%emt 0:03:30]} exd5 {[%emt 0:01:21]} 9. Bd3 {[%emt 0:00:20]} Re8 {[%emt 0:00:12]} 10. h4 {[%emt 0:07:59]} Nf8 {[%emt 0:00:39]} 11. Ne5 {[%emt 0:01:23]} Bd6 {[%emt 0:10:33]} 12. O-O-O {[%emt 0:00:55]} c5 {[%emt 0:04:57]} 13. Bg5 {[%emt 0:09:23]} Be6 {[%emt 0:09:25]} 14. f4 {[%emt 0:03:37]} h6 {[%emt 0:06:50]} 15. Bxf6 {[%emt 0:12:35]} gxf6 {[%emt 0:01:34]} 16. Nf3 {[%emt 0:05:31]} c4 {[%emt 0:00:50]} 17. Bf5 {[%emt 0:00:39]} Qd7 {[%emt 0:04:50]} 18. g4 {[%emt 0:02:46]} Bb4 {[%emt 0:01:16]} 19. h5 {[%emt 0:07:52]} Bxc3 {[%emt 0:07:07]} 20. bxc3 {[%emt 0:01:06]} Qd6 {[%emt 0:00:26]} 21. Nh4 {[%emt 0:02:12]} b5 {[%emt 0:01:56]} 22. Rdg1 {[%emt 0:10:20]} Qa3+ {[%emt 0:02:49]} 23. Qb2 {[%emt 0:02:06]} Qa4 {[%emt 0:00:57]} 24. Bc2 {[%emt 0:04:58]} Qa5 {[%emt 0:00:29]} 25. a3 {[%emt 0:00:19]} Qc7 {[%emt 0:04:17]} 26. g5 {[%emt 0:02:54]} fxg5 {[%emt 0:00:10]} 27. fxg5 {[%emt 0:00:02]} hxg5 {[%emt 0:05:09]} 28. Rxg5+ {[%emt 0:00:02]} Kh8 {[%emt 0:00:12]} 29. Bb1 {[%emt 0:03:47]} Nd7 {[%emt 0:09:23]} 30. Qc2 {[%emt 0:02:03]} Nf6 {[%emt 0:00:43]} 31. Qf2 {[%emt 0:02:17]} Qe7 {[%emt 0:00:34]} 32. Rg6 {[%emt 0:06:30]} Qxa3+ {[%emt 0:03:12]} 33. Kd1 {[%emt 0:00:36]} Bg4+ {[%emt 0:00:30]} 34. Rxg4 {[%emt 0:03:16]} Nxg4 {[%emt 0:00:26]} 35. Qxf7 {[%emt 0:00:19]} Nxe3+ {[%emt 0:00:15]} 36. Ke2 {[%emt 0:00:13]} Nf5+ {[%emt 0:02:01]} 37. Kd2 {[%emt 0:02:29]} Qb2+ {[%emt 0:01:38]} 38. Bc2 {[%emt 0:00:01]} Re2+ {[%emt 0:00:08]} 39. Kxe2 {[%emt 0:00:06]} Qxc2+ {[%emt 0:00:05]} 40. Kf3 {[%emt 0:00:26]} Qe4+ {[%emt 0:01:30]} 41. Kf2 {[%emt 0:30:02]} Qe3+ {[%emt 0:34:48]} 42. Kf1 {[%emt 0:01:07]} Qd3+ {[%emt 0:04:18]} 43. Kf2 {[%emt 0:03:02]} Qd2+ {[%emt 0:01:42]} 44. Kf3 {[%emt 0:01:12]} Nxh4+ {[%emt 0:00:17]} 45. Rxh4 {[%emt 0:00:05]} Qxc3+ {[%emt 0:00:15]} 46. Kf2 {[%emt 0:00:53]} Qd2+ {[%emt 0:00:21]} 47. Kf1 {[%emt 0:01:43]} Qg5 {[%emt 0:01:54]} 48. Rf4 {[%emt 0:00:00]} Rg8 {[%emt 0:00:00]} 49. Qf6+ {[%emt 0:00:00]} Qxf6 {[%emt 0:00:00]} 50. Rxf6 {[%emt 0:00:00]} Rg4 {[%emt 0:00:00]} 51. Ra6 {[%emt 0:00:00]} Rxd4 {[%emt 0:00:00]} 52. Rxa7 {[%emt 0:00:00]} b4 {[%emt 0:00:00]} 53. Ke2 {[%emt 0:00:00]} c3 {[%emt 0:00:00]} 0-1

[Event "Ostravsky Konik-A 2019"]
[Site "Ostrava"]
[Date "2019.05.01"]
[Round "5.8"]
[White "Muzik, Martin"]
[Black "Skola, Miroslav"]
[Result "1/2-1/2"]
[ECO "C00"]
[WhiteElo "2160"]
[BlackElo "2070"]
[Annotator "NA"]
[PlyCount "88"]
[EventDate "2019.04.27"]
[EventType "swiss"]
[EventCountry "CZE"]
[SourceTitle "playchess.com"]
[Source "ChessBase"]
[SourceQuality "1"]
[TimeControl "40/5400+30:1800+30"]

1. e4 {[%emt 0:00:00]} e6 {[%emt 0:00:00]} 2. Qe2 {[%emt 0:00:22]} c5 {[%emt 0:06:15]} 3. Nf3 {[%emt 0:00:54]} Nc6 {[%emt 0:00:09]} 4. g3 {[%emt 0:00:26]} b6 {[%emt 0:01:32]} 5. Bg2 {[%emt 0:00:30]} Bb7 {[%emt 0:00:04]} 6. O-O {[%emt 0:02:32]} Nf6 {[%emt 0:13:43]} 7. d3 {[%emt 0:01:16]} h6 {[%emt 0:02:28]} 8. c4 {[%emt 0:09:32]} Be7 {[%emt 0:08:34]} 9. b3 {[%emt 0:08:19]} O-O {[%emt 0:03:50]} 10. Bb2 {[%emt 0:02:04]} d5 {[%emt 0:02:32]} 11. e5 {[%emt 0:02:31]} Nh7 {[%emt 0:03:33]} 12. Nbd2 {[%emt 0:03:33]} Qd7 {[%emt 0:00:28]} 13. Rad1 {[%emt 0:07:34]} Rad8 {[%emt 0:00:08]} 14. Rfe1 {[%emt 0:14:57]} Rfe8 {[%emt 0:00:10]} 15. Nf1 {[%emt 0:02:03]} Qc7 {[%emt 0:11:23]} 16. h4 {[%emt 0:02:49]} Rd7 {[%emt 0:01:51]} 17. N3h2 {[%emt 0:08:37]} dxc4 {[%emt 0:03:38]} 18. dxc4 {[%emt 0:01:10]} Red8 {[%emt 0:00:16]} 19. Rxd7 {[%emt 0:05:30]} Qxd7 {[%emt 0:00:26]} 20. Be4 {[%emt 0:03:28]} Nd4 {[%emt 0:05:54]} 21. Qh5 {[%emt 0:01:25]} Bxe4 {[%emt 0:00:26]} 22. Rxe4 {[%emt 0:00:03]} Nf5 {[%emt 0:03:42]} 23. Re1 {[%emt 0:02:25]} Qd3 {[%emt 0:02:08]} 24. Qe2 {[%emt 0:00:29]} Nf8 {[%emt 0:05:45]} 25. Kg2 {[%emt 0:02:29]} Qxe2 {[%emt 0:02:00]} 26. Rxe2 {[%emt 0:00:01]} Nd7 {[%emt 0:02:02]} 27. Kf3 {[%emt 0:02:42]} Nb8 {[%emt 0:01:41]} 28. Rd2 {[%emt 0:01:30]} Nc6 {[%emt 0:00:14]} 29. Ke4 {[%emt 0:01:35]} h5 {[%emt 0:00:22]} 30. Nf3 {[%emt 0:00:45]} g6 {[%emt 0:00:47]} 31. Bc3 {[%emt 0:01:52]} Kf8 {[%emt 0:02:29]} 32. Ne3 {[%emt 0:01:56]} Nxe3 {[%emt 0:05:39]} 33. Kxe3 {[%emt 0:00:23]} Ke8 {[%emt 0:00:18]} 34. Rb2 {[%emt 0:01:50]} Rd7 {[%emt 0:02:42]} 35. Nd2 {[%emt 0:00:27]} Nd4 {[%emt 0:05:23]} 36. Ne4 {[%emt 0:00:30]} Nf5+ {[%emt 0:00:08]} 37. Kf4 {[%emt 0:00:26]} Rd1 {[%emt 0:01:42]} 38. b4 {[%emt 0:01:10]} cxb4 {[%emt 0:02:44]} 39. Bxb4 {[%emt 0:00:07]} Bxb4 {[%emt 0:01:01]} 40. Rxb4 {[%emt 0:01:29]} Rd4 {[%emt 0:00:15]} 41. a3 {[%emt 0:34:18]} Ne7 {[%emt 0:09:25]} 42. Ke3 {[%emt 0:00:00]} Nf5+ {[%emt 0:00:45]} 43. Kf4 {[%emt 0:00:00]} Ne7 {[%emt 0:00:08]} 44. Ke3 {[%emt 0:00:00]} Nc6 1/2-1/2

[Event "Ostravsky Konik-A 2019"]
[Site "Ostrava"]
[Date "2019.05.02"]
[Round "6.1"]
[White "Gnojek, Petr"]
[Black "Mica, Marek"]
[Result "1/2-1/2"]
[ECO "A33"]
[WhiteElo "2016"]
[BlackElo "2139"]
[Annotator "NA"]
[PlyCount "54"]
[EventDate "2019.04.27"]
[EventType "swiss"]
[EventCountry "CZE"]
[SourceTitle "playchess.com"]
[Source "ChessBase"]
[SourceQuality "1"]
[TimeControl "40/5400+30:1800+30"]

1. Nf3 {[%emt 0:00:00]} e6 {[%emt 0:00:00]} 2. c4 {[%emt 0:00:00]} c5 {[%emt 0:00:53]} 3. Nc3 {[%emt 0:01:44]} Nf6 {[%emt 0:00:56]} 4. d4 {[%emt 0:07:02]} cxd4 {[%emt 0:01:08]} 5. Nxd4 {[%emt 0:00:06]} Nc6 {[%emt 0:00:23]} 6. e4 {[%emt 0:07:12]} Bb4 {[%emt 0:07:01]} 7. Nxc6 {[%emt 0:00:20]} bxc6 {[%emt 0:02:16]} 8. e5 {[%emt 0:01:24]} Ne4 {[%emt 0:02:06]} 9. Qd4 {[%emt 0:00:08]} Qa5 {[%emt 0:02:32]} 10. Bd2 {[%emt 0:01:34]} Nxd2 {[%emt 0:00:14]} 11. Kxd2 {[%emt 0:00:03]} Rb8 {[%emt 0:00:20]} 12. Kc2 {[%emt 0:01:36]} f6 {[%emt 0:13:40]} 13. exf6 {[%emt 0:08:50]} Bxc3 {[%emt 0:00:30]} 14. f7+ {[%emt 0:04:35]} Kxf7 {[%emt 0:03:02]} 15. Qxc3 {[%emt 0:00:14]} Qxc3+ {[%emt 0:01:21]} 16. Kxc3 {[%emt 0:00:17]} d5 {[%emt 0:00:30]} 17. Bd3 {[%emt 0:06:35]} e5 {[%emt 0:01:40]} 18. Rhe1 {[%emt 0:00:59]} Kf6 {[%emt 0:02:10]} 19. Re2 {[%emt 0:04:16]} e4 {[%emt 0:02:54]} 20. Bc2 {[%emt 0:00:35]} Rd8 {[%emt 0:01:48]} 21. Rd1 {[%emt 0:02:11]} Be6 {[%emt 0:05:22]} 22. f3 {[%emt 0:05:57]} exf3 {[%emt 0:10:49]} 23. Rf2 {[%emt 0:01:07]} d4+ {[%emt 0:11:18]} 24. Rxd4 {[%emt 0:00:04]} Rxd4 {[%emt 0:00:08]} 25. Kxd4 {[%emt 0:00:27]} Rxb2 {[%emt 0:00:14]} 26. Rxf3+ {[%emt 0:00:03]} Ke7 {[%emt 0:00:09]} 27. Bxh7 {[%emt 0:04:21]} Rxg2 1/2-1/2

[Event "Ostravsky Konik-A 2019"]
[Site "Ostrava"]
[Date "2019.05.02"]
[Round "6.2"]
[White "Sernecki, Franciszek"]
[Black "Mrva, Marek"]
[Result "1-0"]
[ECO "B33"]
[WhiteElo "2259"]
[BlackElo "2125"]
[Annotator "NA"]
[PlyCount "77"]
[EventDate "2019.04.27"]
[EventType "swiss"]
[EventCountry "CZE"]
[SourceTitle "playchess.com"]
[Source "ChessBase"]
[SourceQuality "1"]
[TimeControl "40/5400+30:1800+30"]

1. e4 {[%emt 0:00:00]} c5 {[%emt 0:00:03]} 2. Nf3 {[%emt 0:00:00]} Nc6 {[%emt 0:00:15]} 3. d4 {[%emt 0:00:00]} cxd4 {[%emt 0:00:04]} 4. Nxd4 {[%emt 0:00:00]} Nf6 {[%emt 0:02:56]} 5. Nc3 {[%emt 0:00:01]} e5 {[%emt 0:00:06]} 6. Ndb5 {[%emt 0:00:06]} d6 {[%emt 0:00:05]} 7. Bg5 {[%emt 0:00:20]} a6 {[%emt 0:00:17]} 8. Na3 {[%emt 0:02:23]} b5 {[%emt 0:00:04]} 9. Bxf6 {[%emt 0:00:04]} gxf6 {[%emt 0:00:10]} 10. Nd5 {[%emt 0:00:05]} Bg7 {[%emt 0:08:50]} 11. g3 {[%emt 0:08:56]} f5 {[%emt 0:05:24]} 12. Bg2 {[%emt 0:01:22]} O-O {[%emt 0:01:37]} 13. exf5 {[%emt 0:01:21]} Bxf5 {[%emt 0:04:57]} 14. Ne3 {[%emt 0:01:05]} Bd7 {[%emt 0:10:09]} 15. Qxd6 {[%emt 0:03:42]} Qe8 {[%emt 0:01:53]} 16. Nd5 {[%emt 0:43:42]} Ra7 {[%emt 0:07:08]} 17. c3 {[%emt 0:16:28]} e4 {[%emt 0:05:53]} 18. Nf6+ {[%emt 0:03:46]} Bxf6 {[%emt 0:01:03]} 19. Qxf6 {[%emt 0:00:01]} Ne5 {[%emt 0:02:02]} 20. O-O {[%emt 0:03:13]} Bc6 {[%emt 0:14:51]} 21. Nc2 {[%emt 0:01:20]} Qe6 {[%emt 0:00:41]} 22. Qg5+ {[%emt 0:02:27]} Ng6 {[%emt 0:00:48]} 23. Nd4 {[%emt 0:00:44]} Qd5 {[%emt 0:01:16]} 24. Qf6 {[%emt 0:01:59]} Bd7 {[%emt 0:00:49]} 25. Rfe1 {[%emt 0:01:35]} Re8 {[%emt 0:00:25]} 26. Re3 {[%emt 0:01:21]} Bc8 {[%emt 0:02:35]} 27. f3 {[%emt 0:03:04]} Rae7 {[%emt 0:01:41]} 28. Rxe4 {[%emt 0:00:41]} Qc5 {[%emt 0:01:55]} 29. Rae1 {[%emt 0:02:34]} Rxe4 {[%emt 0:00:42]} 30. Rxe4 {[%emt 0:00:54]} Rxe4 {[%emt 0:00:04]} 31. fxe4 {[%emt 0:00:03]} b4 {[%emt 0:00:21]} 32. Qc6 {[%emt 0:01:05]} Qf8 {[%emt 0:00:43]} 33. cxb4 {[%emt 0:00:41]} Ne5 {[%emt 0:02:02]} 34. Qf6 {[%emt 0:01:05]} Ng4 {[%emt 0:00:43]} 35. Qg5+ {[%emt 0:00:29]} Kh8 {[%emt 0:00:06]} 36. Nf5 {[%emt 0:00:38]} Bxf5 {[%emt 0:04:08]} 37. Qxf5 {[%emt 0:00:01]} Ne3 {[%emt 0:00:09]} 38. Qf6+ {[%emt 0:00:16]} Kg8 {[%emt 0:00:39]} 39. Qg5+ {[%emt 0:00:09]} 1-0